bitfinex-derivatives/quotes_SOLF0:USTF0_20241230
["timestamp","ask_amount","ask_price","bid_price","bid_amount"]
[1735529399798,2.602,192.59,192.54,19.06717018]
[1735529400000,2.602,192.59,192.55,4.02446985]
[1735529400299,2.6019,192.6,192.56,12.3235907]
[1735529400502,8.29912085,192.63,192.57,4.02446985]
[1735529400799,8.29912085,192.65,192.58,12.32185267]
[1735529401092,8.29912085,192.65,192.58,8.29912085]
[1735529401298,8.29912085,192.63,192.56,8.29912085]
[1735529402805,2.6017,192.61,192.56,8.29912085]
[1735529403096,8.29912085,192.63,192.56,8.29912085]
[1735529404402,2.6021,192.59,192.56,8.29912085]
[1735529405095,1.5148,192.66,192.58,8.29912085]
[1735529405096,8.29912085,192.65,192.58,8.29912085]
[1735529405999,9.81392085,192.66,192.6,8.29912085]
[1735529406391,1.5131,192.67,192.62,8.29912085]
[1735529406589,24.91983761,192.74,192.64,8.29912085]
[1735529406590,8.29912085,192.7,192.64,8.29912085]
[1735529407198,2.6007,192.69,192.64,10.90042085]
[1735529407504,8.29912085,192.7,192.64,8.29912085]
[1735529407698,2.6005,192.7,192.65,2.6011]
[1735529410503,2.6005,192.7,192.66,8.29912085]
[1735529411602,8.29912085,192.7,192.63,3.02]
[1735529411996,8.29912085,192.7,192.64,8.29912085]
[1735529412904,2.6008,192.68,192.64,8.29912085]
[1735529413300,8.29912085,192.7,192.63,3.02]
[1735529413502,2.601,192.67,192.63,11.31912085]
[1735529415003,2.6011,192.66,192.63,3.02]
[1735529415704,8.29912085,192.7,192.63,3.02]
[1735529415900,2.6009,192.67,192.63,3.02]
[1735529417608,2.6006,192.7,192.66,8.29912085]
[1735529417801,8.29912085,192.72,192.66,8.29912085]
[1735529418201,9.79642085,192.77,192.7,8.29912085]
[1735529418600,8.29912085,192.79,192.72,8.29912085]
[1735529418902,2.5995,192.78,192.74,8.29912085]
[1735529419408,8.29912085,192.77,192.7,8.29912085]
[1735529419706,2.6006,192.7,192.68,3.02]
[1735529419904,8.29912085,192.73,192.68,3.02]
[1735529420106,8.29912085,192.71,192.64,8.29912085]
[1735529420302,2.6009,192.67,192.62,8.29912085]
[1735529420506,8.29912085,192.69,192.63,3.02]
[1735529420909,2.601,192.67,192.63,3.02]
[1735529421109,8.29912085,192.71,192.66,8.29912085]
[1735529422407,2.6005,192.7,192.66,8.29912085]
[1735529422600,8.29912085,192.71,192.66,8.29912085]
[1735529422803,8.29912085,192.69,192.63,3.02]
[1735529423003,2.6009,192.67,192.63,3.02]
[1735529424005,2.6009,192.67,192.64,8.29912085]
[1735529425406,2.6009,192.67,192.63,3.02]
[1735529427505,2.6011,192.66,192.63,3.02]
[1735529427707,8.29912085,192.65,192.59,8.29912085]
[1735529427907,8.29912085,192.63,192.58,3.02]
[1735529428410,2.6018,192.61,192.58,3.02]
[1735529428812,8.29912085,192.63,192.57,8.29912085]
[1735529429016,2.602,192.6,192.57,8.29912085]
[1735529429311,2.602,192.6,192.55,11.31912085]
[1735529429707,8.29912085,192.61,192.55,11.31912085]
[1735529429908,8.29912085,192.61,192.55,8.29912085]
[1735529430413,8.29912085,192.59,192.54,5.14534933]
[1735529430707,8.29912085,192.59,192.52,8.29912085]
[1735529430912,2.6025,192.56,192.52,8.29912085]
[1735529432811,8.29912085,192.57,192.52,8.29912085]
[1735529433017,8.29912085,192.55,192.48,11.31912085]
[1735529433313,8.29912085,192.53,192.48,8.29912085]
[1735529433515,8.29912085,192.53,192.46,11.31912085]
[1735529434417,2.6031,192.51,192.46,13.92282085]
[1735529435015,8.29912085,192.53,192.46,11.31912085]
[1735529435813,2.6031,192.51,192.46,11.31912085]
[1735529436116,2.6031,192.51,192.41,1.4637]
[1735529436117,8.29912085,192.51,192.44,8.29912085]
[1735529436317,8.29912085,192.51,192.44,11.31912085]
[1735529436912,8.29912085,192.51,192.44,8.29912085]
[1735529437113,2.6034,192.49,192.44,8.29912085]
[1735529438216,2.6034,192.49,192.44,10.90312085]
[1735529438817,2.6034,192.49,192.44,8.29912085]
[1735529440720,2.6031,192.51,192.46,8.29912085]
[1735529440917,4.4192,192.59,192.48,8.29912085]
[1735529441115,8.29912085,192.58,192.5,8.29912085]
[1735529441921,2.6025,192.56,192.5,10.90232085]
[1735529442117,8.29912085,192.58,192.5,10.90232085]
[1735529442323,4.4192,192.59,192.49,3.02]
[1735529442521,4.4192,192.59,192.47,12.97939657]
[1735529442720,12.97939657,192.57,192.47,3.02]
[1735529443618,2.6032,192.51,192.47,3.02]
[1735529443818,12.97939657,192.57,192.47,3.02]
[1735529444324,2.6033,192.5,192.47,3.02]
[1735529447622,2.6033,192.49,192.47,3.02]
[1735529447823,12.97939657,192.54,192.47,3.02]
[1735529448727,2.6035,192.49,192.47,3.02]
[1735529448927,12.97939657,192.54,192.44,2.604]
[1735529449925,2.6035,192.48,192.44,2.604]
[1735529450319,2.6035,192.48,192.43,5.6241]
[1735529452029,2.6033,192.5,192.44,2.6039]
[1735529452223,2.6033,192.5,192.43,3.02]
[1735529452620,2.6033,192.5,192.45,2.6039]
[1735529453024,2.6033,192.49,192.43,3.02]
[1735529453431,12.97939657,192.54,192.43,3.02]
[1735529453630,2.6036,192.47,192.43,3.02]
[1735529455831,12.97939657,192.54,192.43,3.02]
[1735529456035,17.39859657,192.59,192.44,12.97939657]
[1735529456225,17.39859657,192.59,192.43,3.02]
[1735529456226,17.39859657,192.59,192.47,12.97939657]
[1735529456424,17.39859657,192.59,192.48,3.02]
[1735529457437,2.6027,192.54,192.49,2.6032]
[1735529458333,2.6029,192.52,192.47,2.6035]
[1735529458636,12.97939657,192.56,192.44,3.02]
[1735529458831,2.6029,192.53,192.44,3.02]
[1735529459035,2.6029,192.53,192.44,5.6239]
[1735529459036,12.97939657,192.53,192.44,5.6239]
[1735529459632,2.6033,192.5,192.44,5.6239]
[1735529460133,2.6033,192.5,192.44,3.02]
[1735529460339,15.58229657,192.53,192.44,3.02]
[1735529460635,12.97939657,192.53,192.44,3.02]
[1735529460834,2.603,192.52,192.47,2.6035]
[1735529461338,12.97939657,192.53,192.47,2.6035]
[1735529461636,2.6031,192.51,192.46,2.6037]
[1735529461838,12.97939657,192.53,192.44,3.02]
[1735529462942,1.5894,192.52,192.44,3.02]
[1735529463931,2.6033,192.5,192.45,2.6039]
[1735529464439,2.6033,192.5,192.45,10.91477153]
[1735529465242,9.90027153,192.52,192.45,8.31087153]
[1735529465442,2.6031,192.51,192.47,2.6036]
[1735529466443,2.6031,192.51,192.45,8.31087153]
[1735529466634,2.6031,192.51,192.46,2.6037]
[1735529466840,2.6033,192.49,192.45,8.31087153]
[1735529469442,2.6035,192.48,192.45,8.31087153]
[1735529469648,2.6035,192.48,192.44,3.02]
[1735529469947,2.6035,192.48,192.45,4.01903268]
[1735529470143,2.6035,192.48,192.44,3.02]
[1735529470345,2.6035,192.48,192.45,4.01931221]
[1735529470542,2.6035,192.48,192.44,3.02]
[1735529470736,2.6035,192.48,192.45,4.02206101]
[1735529470942,2.6035,192.48,192.44,3.02]
[1735529471138,8.31087153,192.48,192.45,4.02203315]
[1735529471344,8.31087153,192.46,192.42,28.73515208]
[1735529471543,8.31087153,192.46,192.43,4.02339458]
[1735529471746,2.6041,192.43,192.42,7.18378802]
[1735529471947,2.6041,192.43,192.42,11.21164179]
[1735529472138,2.6041,192.43,192.42,7.18378802]
[1735529472539,2.6041,192.43,192.42,11.21636039]
[1735529473050,2.6041,192.43,192.42,7.18378802]
[1735529473348,2.6041,192.43,192.38,8.31087153]
[1735529473545,2.6041,192.43,192.39,4.03191837]
[1735529473748,2.6044,192.42,192.4,4.03428864]
[1735529473944,2.6044,192.42,192.41,4.03428864]
[1735529474352,8.31087153,192.44,192.36,31.34025208]
[1735529474353,8.31087153,192.44,192.36,37.04602361]
[1735529474647,8.31087153,192.44,192.37,4.03504258]
[1735529474846,8.31087153,192.44,192.38,4.03504258]
[1735529475041,2.6045,192.41,192.36,18.09975955]
[1735529475350,2.6045,192.41,192.37,4.0374513]
[1735529475549,2.6045,192.41,192.36,18.09975955]
[1735529475952,2.6045,192.41,192.36,15.49465955]
[1735529476150,8.31087153,192.42,192.36,8.31087153]
[1735529476351,8.31087153,192.4,192.33,8.31087153]
[1735529476951,8.31087153,192.4,192.32,9.78928802]
[1735529477152,8.31087153,192.4,192.33,12.3466106]
[1735529477451,8.31087153,192.38,192.27,4.6092]
[1735529477651,8.31087153,192.36,192.3,8.31087153]
[1735529477848,2.6055,192.33,192.28,8.31087153]
[1735529478055,8.31087153,192.34,192.28,8.31087153]
[1735529478553,2.6058,192.32,192.26,39.65242361]
[1735529478745,8.31087153,192.3,192.26,28.73515208]
[1735529478950,8.31087153,192.3,192.22,15.49465955]
[1735529479151,1.5431,192.33,192.22,15.49465955]
[1735529479152,8.31087153,192.28,192.22,15.49465955]
[1735529479454,1.5431,192.33,192.24,8.31087153]
[1735529479653,8.31087153,192.3,192.24,8.31087153]
[1735529480054,2.6062,192.29,192.24,8.31087153]
[1735529480246,8.31087153,192.28,192.22,15.49465955]
[1735529480452,8.31087153,192.28,192.22,8.31087153]
[1735529480948,2.6065,192.26,192.22,8.31087153]
[1735529481148,8.31087153,192.28,192.22,8.31087153]
[1735529481655,10.91717153,192.28,192.22,10.91787153]
[1735529481850,1.5431,192.33,192.22,8.31087153]
[1735529482054,8.31087153,192.31,192.24,8.31087153]
[1735529482255,1.5431,192.33,192.21,13.01400511]
[1735529482455,2.6058,192.31,192.21,13.01400511]
[1735529482656,1.5431,192.33,192.21,13.01400511]
[1735529483551,2.6062,192.29,192.23,2.6069]
[1735529483753,13.01400511,192.31,192.18,14.54610511]
[1735529484055,2.6066,192.26,192.19,5.6273]
[1735529484554,16.03400511,192.31,192.19,3.02]
[1735529484953,2.6066,192.26,192.2,2.6072]
[1735529485257,16.03400511,192.31,192.2,2.6072]
[1735529485956,16.03400511,192.31,192.18,17.56610511]
[1735529486257,13.01400511,192.28,192.18,20.17350511]
[1735529486452,13.01400511,192.28,192.18,17.56610511]
[1735529486648,13.01400511,192.25,192.14,3.02]
[1735529487052,13.01400511,192.25,192.12,13.01400511]
[1735529487357,14.49780511,192.25,192.13,3.02]
[1735529487552,14.49780511,192.25,192.15,2.6079]
[1735529487954,14.49780511,192.25,192.12,13.01400511]
[1735529488157,2.6074,192.19,192.13,5.6281]
[1735529489358,2.6072,192.21,192.15,2.6078]
[1735529489561,14.49780511,192.25,192.15,2.6078]
[1735529490658,2.6072,192.21,192.15,2.6078]
[1735529491350,1.4838,192.25,192.15,13.01400511]
[1735529491750,13.01400511,192.28,192.15,13.01400511]
[1735529491963,2.6064,192.27,192.2,2.6072]
[1735529492955,2.6065,192.26,192.2,2.6072]
[1735529495363,13.01400511,192.28,192.19,3.02]
[1735529495564,13.01400511,192.28,192.14,3.02]
[1735529495765,2.6076,192.18,192.14,3.02]
[1735529497167,1.5561,192.23,192.14,3.02]
[1735529497862,2.6074,192.2,192.14,3.02]
[1735529498564,2.6074,192.19,192.14,3.02]
[1735529500067,2.6074,192.19,192.13,2.6081]
[1735529502467,2.6076,192.18,192.13,2.6081]
[1735529504971,2.6074,192.19,192.13,2.6081]
[1735529506869,2.6073,192.2,192.15,2.6078]
[1735529507064,13.01400511,192.24,192.12,13.01400511]
[1735529507371,2.6067,192.24,192.18,2.6074]
[1735529508663,2.6069,192.23,192.18,2.6074]
[1735529508872,16.03400511,192.28,192.19,2.6073]
[1735529509064,16.03400511,192.28,192.16,3.02]
[1735529509868,2.607,192.23,192.17,2.6075]
[1735529511669,2.607,192.23,192.18,2.6075]
[1735529512476,13.01400511,192.25,192.17,2.6076]
[1735529512477,2.607,192.22,192.17,2.6076]
[1735529513170,2.607,192.22,192.16,3.02]
[1735529513171,2.6072,192.21,192.16,2.6078]
[1735529513472,13.01400511,192.22,192.12,13.01400511]
[1735529513668,13.01400511,192.22,192.12,16.03400511]
[1735529513873,2.6074,192.19,192.13,2.6081]
[1735529514469,2.6075,192.18,192.13,2.6081]
[1735529514967,2.6077,192.17,192.12,5.6283]
[1735529515166,13.01400511,192.22,192.12,3.02]
[1735529515366,13.01400511,192.19,192.12,3.02]
[1735529515673,2.6078,192.17,192.11,2.6085]
[1735529515875,2.6078,192.17,192.15,7.21291849]
[1735529516475,2.6078,192.16,192.15,7.21291849]
[1735529516674,2.6078,192.16,192.12,7.21291849]
[1735529516977,2.6078,192.16,192.11,2.6085]
[1735529517779,2.6078,192.16,192.12,7.21052248]
[1735529517980,2.6078,192.16,192.11,2.6085]
[1735529518682,13.01400511,192.19,192.11,28.83581001]
[1735529518877,2.608,192.15,192.1,2.6086]
[1735529519182,13.01400511,192.19,192.1,2.6086]
[1735529519582,2.608,192.15,192.1,2.6086]
[1735529519782,2.608,192.15,192.1,9.82212088]
[1735529520183,10.95036158,192.15,192.1,9.82212088]
[1735529522186,8.34236158,192.11,192.07,90.23807629]
[1735529522389,8.34236158,192.09,192.07,90.23807629]
[1735529522688,8.34236158,192.09,192.07,3.68305438]
[1735529523284,10.95126158,192.09,192.06,7.21405154]
[1735529523785,8.34236158,192.09,192.06,7.21405154]
[1735529524285,13.04271227,192.12,192.06,7.21405154]
[1735529524485,13.04271227,192.12,192.04,28.85620617]
[1735529525384,2.6089,192.08,192.03,9.82345154]
[1735529526294,2.6086,192.11,192.05,2.6092]
[1735529526594,13.04271227,192.12,192.03,7.21405154]
[1735529526798,13.04271227,192.12,192.02,3.02]
[1735529527000,4.5242,192.14,192.03,13.04271227]
[1735529527193,3.02,192.17,192.06,13.04271227]
[1735529527390,13.04271227,192.19,192.07,3.02]
[1735529527591,13.04271227,192.19,192.12,2.6083]
[1735529527792,13.04271227,192.19,192.07,4.5951]
[1735529527996,2.6079,192.16,192.11,2.6085]
[1735529528195,2.6079,192.16,192.07,4.5951]
[1735529528791,13.04271227,192.19,192.07,4.5951]
[1735529528993,2.608,192.15,192.07,4.5951]
[1735529529494,2.608,192.15,192.09,2.6087]
[1735529529796,13.04271227,192.16,192.07,4.5951]
[1735529529993,2.6082,192.13,192.08,2.6089]
[1735529530208,13.04271227,192.16,192.07,3.02]
[1735529530399,1.5001,192.15,192.07,3.02]
[1735529531000,2.6085,192.12,192.07,3.02]
[1735529531500,2.6085,192.12,192.03,20.25326646]
[1735529531692,2.6085,192.12,192.04,3.02]
[1735529531898,1.5001,192.15,192.04,3.02]
[1735529532094,13.04271227,192.13,192.04,3.02]
[1735529532396,13.04271227,192.13,192.03,7.21055419]
[1735529532597,13.04271227,192.13,192.02,11.80565419]
[1735529532797,2.6089,192.09,192.03,2.6095]
[1735529533190,13.04271227,192.13,192.03,2.6095]
[1735529533391,2.6089,192.08,192.03,2.6095]
[1735529535196,13.04271227,192.13,192.01,3.02]
[1735529535401,13.04271227,192.13,192.01,5.6297]
[1735529536206,2.6091,192.07,192.01,5.6297]
[1735529536404,2.6091,192.07,192.02,2.6097]
[1735529536603,13.04271227,192.13,192.0,16.06271227]
[1735529537104,13.04271227,192.13,192.0,13.04271227]
[1735529537306,13.04271227,192.13,192.0,16.06271227]
[1735529537705,2.609,192.08,192.03,2.6095]
[1735529538604,2.609,192.08,192.0,16.06271227]
[1735529538804,2.609,192.08,192.04,2.6094]
[1735529540004,13.04271227,192.1,192.0,16.06271227]
[1735529540205,2.609,192.07,192.03,2.6096]
[1735529542102,13.04271227,192.13,192.0,16.06271227]
[1735529542300,4.7096,192.15,192.03,13.04271227]
[1735529542704,4.7096,192.15,192.04,1.5384]
[1735529542908,4.7096,192.15,192.05,3.02]
[1735529543904,2.6082,192.13,192.07,2.6089]
[1735529544306,4.7096,192.15,192.05,3.02]
[1735529544607,4.108,192.15,192.1,2.6086]
[1735529544906,1.5001,192.15,192.05,3.02]
[1735529545312,2.6083,192.13,192.07,2.609]
[1735529546005,2.6083,192.13,192.08,2.6088]
[1735529550212,8.34459904,192.12,192.08,2.6088]
[1735529551109,10.95289904,192.12,192.08,2.6088]
[1735529552413,10.95289904,192.12,192.07,2.609]
[1735529552713,8.34459904,192.12,192.05,8.34459904]
[1735529553013,8.34459904,192.12,192.08,2.6089]
[1735529554115,8.34459904,192.12,192.05,8.34459904]
[1735529554317,10.95299904,192.12,192.07,2.609]
[1735529556317,8.34459904,192.12,192.05,11.36459904]
[1735529556521,8.34459904,192.1,192.05,3.02]
[1735529557720,8.34459904,192.1,192.07,2.609]
[1735529559020,8.34459904,192.1,192.06,2.6092]
[1735529559616,10.95329904,192.1,192.05,2.6093]
[1735529560521,2.6088,192.09,192.05,2.6093]
[1735529560923,2.6088,192.09,192.04,2.6094]
[1735529561324,8.34459904,192.08,192.04,2.6094]
[1735529561522,10.95359904,192.08,192.03,2.6096]
[1735529562023,8.34459904,192.08,192.05,2.6093]
[1735529562222,10.95319904,192.1,192.05,2.6093]
[1735529564926,8.34459904,192.1,192.03,8.34459904]
[1735529566326,8.34459904,192.1,192.05,2.6093]
[1735529566628,8.34459904,192.1,192.03,8.34459904]
[1735529566829,8.34459904,192.1,192.06,2.6091]
[1735529567430,8.34459904,192.1,192.07,2.609]
[1735529567623,1.5923,192.14,192.05,8.34459904]
[1735529567927,8.34459904,192.14,192.06,3.02]
[1735529568627,1.5001,192.15,192.06,3.02]
[1735529568628,8.34459904,192.12,192.06,3.02]
[1735529569829,8.34459904,192.1,192.06,3.02]
[1735529571433,10.95329904,192.1,192.06,5.6291]
[1735529572330,8.34459904,192.1,192.07,2.6089]
[1735529572530,8.34459904,192.12,192.06,3.02]
[1735529572829,8.34459904,192.14,192.07,8.34459904]
[1735529573231,10.95269904,192.14,192.09,2.6086]
[1735529574937,10.95269904,192.14,192.1,4.05274132]
[1735529575238,10.95269904,192.14,192.09,2.6086]
[1735529575535,10.95269904,192.14,192.1,4.05277733]
[1735529575730,10.95269904,192.14,192.09,2.6086]
[1735529575926,10.95269904,192.14,192.1,4.05274454]
[1735529576135,10.95269904,192.14,192.09,2.6086]
[1735529577136,2.6082,192.13,192.1,4.05136584]
[1735529577330,2.6082,192.13,192.08,2.6089]
[1735529577535,2.6082,192.13,192.09,4.05136584]
[1735529577831,2.6082,192.13,192.1,4.05174194]
[1735529578037,2.6082,192.13,192.08,2.6089]
[1735529578334,2.6082,192.13,192.09,4.05298927]
[1735529578535,2.6082,192.13,192.1,4.05298927]
[1735529578738,2.6082,192.13,192.11,4.0634441]
[1735529578937,2.6082,192.13,192.12,4.0634441]
[1735529579632,2.6082,192.13,192.07,8.34459904]
[1735529579834,2.6082,192.13,192.09,2.6087]
[1735529580338,2.6082,192.13,192.1,4.06431022]
[1735529580533,2.6082,192.13,192.11,4.06431022]
[1735529580735,2.6082,192.13,192.12,4.06431022]
[1735529580941,8.34459904,192.14,192.12,4.06431022]
[1735529581240,3.02,192.25,192.13,12.40890926]
[1735529581431,8.34459904,192.21,192.14,4.06431022]
[1735529581635,10.95179904,192.21,192.16,2.6077]
[1735529581836,10.95179904,192.21,192.17,4.06431022]
[1735529582041,10.95179904,192.21,192.18,4.06126286]
[1735529582232,8.34459904,192.21,192.17,2.6076]
[1735529582440,8.34459904,192.19,192.13,3.02]
[1735529582635,8.34459904,192.17,192.14,4.05510769]
[1735529582836,8.34459904,192.17,192.13,3.02]
[1735529583238,2.6079,192.16,192.13,3.02]
[1735529585944,2.6078,192.16,192.14,4.05981274]
[1735529586244,2.6078,192.16,192.13,3.02]
[1735529586543,2.6078,192.16,192.14,4.05964709]
[1735529586742,2.6078,192.16,192.13,3.02]
[1735529586938,2.6078,192.16,192.14,4.05995037]
[1735529587138,2.608,192.15,192.13,3.02]
[1735529587338,2.608,192.15,192.1,2.6086]
[1735529587641,2.608,192.15,192.11,4.06119297]
[1735529587842,2.608,192.15,192.12,4.06119297]
[1735529588042,2.608,192.15,192.13,4.06119297]
[1735529588241,2.608,192.15,192.1,2.6086]
[1735529588540,2.608,192.15,192.11,4.06190977]
[1735529588742,2.608,192.15,192.12,4.06190977]
[1735529588935,2.608,192.15,192.13,4.06190977]
[1735529589139,2.608,192.15,192.1,2.6086]
[1735529589341,2.608,192.15,192.11,4.06419222]
[1735529589541,2.608,192.15,192.12,4.06419222]
[1735529589743,2.608,192.15,192.1,2.6086]
[1735529590033,2.608,192.15,192.11,4.06484247]
[1735529590238,2.608,192.15,192.12,4.06484247]
[1735529590441,2.608,192.15,192.13,4.06484247]
[1735529590742,2.608,192.15,192.1,2.6086]
[1735529590945,2.608,192.15,192.11,4.06426112]
[1735529591239,2.608,192.15,192.12,4.06426112]
[1735529591434,2.608,192.15,192.1,2.6086]
[1735529591639,2.608,192.15,192.11,4.06439966]
[1735529591835,2.608,192.15,192.12,4.06439966]
[1735529592035,2.608,192.15,192.13,4.06439966]
[1735529592330,2.608,192.15,192.1,2.6086]
[1735529592533,2.608,192.15,192.11,4.06460136]
[1735529592735,2.608,192.15,192.12,4.06460136]
[1735529592935,2.608,192.15,192.13,4.06460136]
[1735529593140,8.34459904,192.15,192.09,3.02]
[1735529593341,10.95289904,192.13,192.1,4.06562218]
[1735529593542,10.95289904,192.13,192.11,4.06562218]
[1735529593741,10.95289904,192.13,192.09,3.02]
[1735529593940,10.95289904,192.13,192.1,4.066688]
[1735529594141,10.95289904,192.13,192.11,4.066688]
[1735529594342,10.95289904,192.13,192.09,3.02]
[1735529594643,10.95309904,192.11,192.1,4.06737442]
[1735529594843,8.34459904,192.11,192.03,16.47650442]
[1735529595049,3.1031,192.15,192.02,11.36459904]
[1735529595050,8.34459904,192.08,192.02,11.36459904]
[1735529595346,10.95359904,192.08,192.02,13.97419904]
[1735529595545,8.34459904,192.08,192.01,28.37085979]
[1735529595744,8.34459904,192.06,192.01,28.37085979]
[1735529595948,8.34459904,192.06,192.01,49.0988953]
[1735529596648,2.6093,192.05,192.01,49.0988953]
[1735529597144,2.6093,192.05,192.01,3.68485166]
[1735529597742,8.34459904,192.06,192.0,10.95459904]
[1735529597950,8.34459904,192.06,192.0,8.34459904]
[1735529598249,8.34459904,192.06,192.01,2.6098]
[1735529599044,8.34459904,192.06,192.0,8.34459904]
[1735529599045,8.34459904,192.06,192.02,2.6097]
[1735529600141,8.34459904,192.08,192.05,2.6092]
[1735529600339,8.34459904,192.1,192.05,2.6092]
[1735529600544,8.34459904,192.12,192.06,8.34459904]
[1735529600750,8.34459904,192.14,192.09,2.6086]
[1735529601353,8.34459904,192.14,192.1,2.6085]
[1735529601546,8.34459904,192.16,192.1,8.34459904]
[1735529602550,8.34459904,192.16,192.12,2.6083]
[1735529603250,8.34459904,192.18,192.13,2.6082]
[1735529604950,8.34459904,192.14,192.09,3.02]
[1735529605351,8.34459904,192.16,192.11,8.34459904]
[1735529605543,8.34459904,192.18,192.11,8.34459904]
[1735529606545,4.5795,192.21,192.13,8.34459904]
[1735529606546,8.34459904,192.2,192.13,8.34459904]
[1735529606750,8.34459904,192.2,192.14,3.02]
[1735529607551,8.34459904,192.2,192.15,2.6079]
[1735529607854,8.34459904,192.2,192.14,3.02]
[1735529608054,4.5795,192.21,192.14,3.02]
[1735529608055,8.34459904,192.18,192.14,3.02]
[1735529609549,8.34459904,192.16,192.14,3.02]
[1735529609752,8.34459904,192.16,192.11,2.6084]
[1735529610553,10.95249904,192.16,192.11,2.6084]
[1735529611259,8.34459904,192.16,192.1,3.02]
[1735529611553,8.34459904,192.14,192.09,8.34459904]
[1735529611758,8.34459904,192.16,192.09,8.34459904]
[1735529612358,2.6081,192.14,192.09,10.95319904]
[1735529612759,10.95269904,192.14,192.09,2.6086]
[1735529613460,10.95269904,192.14,192.08,5.6289]
[1735529613960,10.95269904,192.14,192.08,3.02]
[1735529614656,8.34459904,192.14,192.08,3.02]
[1735529614853,4.5795,192.21,192.11,8.34459904]
[1735529615159,8.34459904,192.19,192.11,8.34459904]
[1735529616463,10.95199904,192.19,192.14,2.608]
[1735529617564,2.6073,192.21,192.17,2.6077]
[1735529617862,5.04888551,192.25,192.17,8.34459904]
[1735529618060,13.39348455,192.25,192.19,8.34459904]
[1735529618262,13.39348455,192.25,192.21,2.6071]
[1735529618767,4.7211,192.3,192.21,8.34459904]
[1735529618964,13.06569904,192.3,192.23,8.34459904]
[1735529619759,15.67169904,192.3,192.25,2.6066]
[1735529621063,8.34459904,192.28,192.21,8.34459904]
[1735529621966,10.95089904,192.28,192.22,2.6069]
[1735529622759,8.34459904,192.28,192.21,8.34459904]
[1735529623066,8.34459904,192.28,192.23,2.6068]
[1735529623465,8.34459904,192.28,192.21,10.95159904]
[1735529623660,8.34459904,192.28,192.21,8.34459904]
[1735529623861,8.34459904,192.26,192.2,3.02]
[1735529624262,2.6067,192.25,192.2,3.02]
[1735529624458,8.34459904,192.26,192.2,3.02]
[1735529624664,8.34459904,192.22,192.16,8.34459904]
[1735529624859,8.34459904,192.2,192.14,8.34459904]
[1735529625161,2.6077,192.17,192.13,3.02]
[1735529626265,2.6078,192.16,192.13,3.02]
[1735529627472,2.608,192.15,192.09,1.5607]
[1735529627766,2.608,192.15,192.1,3.02]
[1735529627972,2.608,192.15,192.1,5.6286]
[1735529628860,2.6079,192.16,192.1,5.6286]
[1735529629866,2.608,192.15,192.1,3.02]
[1735529630260,13.03193049,192.2,192.1,3.02]
[1735529630767,2.6077,192.17,192.1,5.6286]
[1735529630971,13.03193049,192.2,192.1,3.02]
[1735529632272,1.6147,192.21,192.14,2.6081]
[1735529632470,13.03193049,192.23,192.15,3.02]
[1735529632876,2.6075,192.19,192.15,3.02]
[1735529634275,13.03193049,192.23,192.15,3.02]
[1735529635072,4.5766,192.28,192.15,3.02]
[1735529635274,4.5766,192.28,192.17,13.03193049]
[1735529635667,4.5766,192.28,192.22,2.607]
[1735529635876,1.4889,192.28,192.22,2.607]
[1735529636072,1.4889,192.28,192.21,3.02]
[1735529636073,13.03193049,192.32,192.21,3.02]
[1735529636277,2.6059,192.3,192.21,3.02]
[1735529636576,13.03193049,192.32,192.21,3.02]
[1735529636775,2.6063,192.28,192.21,5.627]
[1735529636977,2.6063,192.28,192.21,3.02]
[1735529637368,2.6062,192.28,192.23,2.6068]
[1735529638071,13.03193049,192.32,192.23,2.6068]
[1735529638271,13.03193049,192.32,192.21,3.02]
[1735529638272,2.606,192.3,192.24,2.6067]
[1735529639170,13.03193049,192.32,192.24,2.6067]
[1735529639171,2.6061,192.29,192.24,2.6067]
[1735529640077,2.6063,192.27,192.22,5.6269]
[1735529641376,13.03193049,192.29,192.17,13.03193049]
[1735529641574,13.03193049,192.29,192.18,3.02]
[1735529642077,13.03193049,192.29,192.2,2.6072]
[1735529642078,2.6067,192.25,192.2,2.6072]